fUSD/lending_fUSD_20240629
["ID","MTS","AMOUNT","RATE_DAILY","PERIOD"]
[330676035,1719702654857,-500.0,0.00013917,3]
[330676036,1719702654867,-1884.09,0.00013917,3]
[330676037,1719702654876,-500.0,0.00013917,3]
[330676038,1719702654886,-500.0,0.00013917,3]
[330676039,1719702654896,-500.0,0.00013917,3]
[330676040,1719702654909,-610.86,0.00013917,3]
[330676041,1719702654921,-648.65,0.00013917,3]
[330676042,1719702654931,-550.73,0.00013917,3]
[330676043,1719702654940,-500.0,0.00013917,3]
[330676044,1719702654950,-500.0,0.00013917,3]
[330676045,1719702654960,-500.0,0.00013917,3]
[330676046,1719702654969,-1575.79,0.00013917,3]
[330676047,1719702654979,-500.0,0.00013917,3]
[330676048,1719702654989,-500.0,0.00013917,3]
[330676049,1719702654999,-500.0,0.00013917,3]
[330676050,1719702655009,-500.0,0.00013917,3]
[330676051,1719702655018,-500.0,0.00013917,3]
[330676052,1719702655028,-500.0,0.00013917,3]
[330676053,1719702655038,-23856.81,0.00013917,3]
[330676054,1719702655048,-500.0,0.00013917,3]
[330676055,1719702655058,-500.0,0.00013917,3]
[330676056,1719702655067,-500.0,0.00013917,3]
[330676057,1719702655077,-500.0,0.00013917,3]
[330676058,1719702655086,-602.02,0.00013917,3]
[330676059,1719702655096,-500.0,0.00013917,3]
[330676060,1719702655106,-500.0,0.00013917,3]
[330676061,1719702655116,-500.0,0.00013917,3]
[330676062,1719702655125,-500.0,0.00013917,3]
[330676063,1719702655135,-600.74,0.00013917,3]
[330676064,1719702655145,-2906.11,0.00013917,3]
[330676065,1719702655155,-500.0,0.00013917,3]
[330676066,1719702655164,-500.0,0.00013917,3]
[330676067,1719702655178,-575.74,0.00013917,3]
[330676068,1719702655188,-500.0,0.00013917,3]
[330676069,1719702655198,-500.0,0.00013917,3]
[330676070,1719702655210,-500.0,0.00013917,3]
[330676071,1719702655220,-500.0,0.00013917,3]
[330676072,1719702655229,-500.0,0.00013917,3]
[330676073,1719702655239,-573.7,0.00013917,3]
[330676074,1719702655248,-500.0,0.00013917,3]
[330676075,1719702655258,-500.0,0.00013917,3]
[330676076,1719702655272,-500.0,0.00013917,3]
[330676077,1719702655281,-371.47213092,0.00013917,3]
[330676078,1719702655291,-500.0,0.00013917,3]
[330676079,1719702655301,-500.0,0.00013917,3]
[330676080,1719702655310,-500.0,0.00013917,3]
[330676081,1719702655320,-500.0,0.00013917,3]
[330676082,1719702655329,-175.11211121,0.00013917,3]
[330676083,1719702655339,-278.63081986,0.00013917,3]
[330676084,1719702655352,-500.0,0.00013917,3]
[330676085,1719702655362,-500.0,0.00013917,3]
[330676086,1719702655372,-500.0,0.00013917,3]
[330676087,1719702655381,-551.79,0.00013917,3]
[330676088,1719702655392,-500.0,0.00013917,3]
[330676089,1719702655401,-524.4,0.00013917,3]
[330676090,1719702655411,-500.0,0.00013917,3]
[330676091,1719702655423,-500.0,0.00013917,3]
[330676092,1719702655432,-500.0,0.00013917,3]
[330676093,1719702655443,-500.0,0.00013917,3]
[330676094,1719702655453,-500.0,0.00013917,3]
[330676095,1719702655463,-500.0,0.00013917,3]
[330676096,1719702655472,-447.56608041,0.00013917,3]
[330676097,1719702655483,-608.24,0.00013917,3]
[330676098,1719702655494,-500.0,0.00013917,3]
[330676099,1719702655504,-500.0,0.00013917,3]
[330676100,1719702655513,-1675.83,0.00013917,3]
[330676101,1719702655523,-500.0,0.00013917,3]
[330676102,1719702655533,-639.74,0.00013917,3]
[330676103,1719702655543,-814.0,0.00013917,3]
[330676104,1719702655553,-500.0,0.00013917,3]
[330676105,1719702655563,-500.0,0.00013917,3]
[330676106,1719702655573,-500.0,0.00013917,3]
[330676107,1719702655582,-666.7,0.00013917,3]
[330676108,1719702655592,-500.0,0.00013917,3]
[330676109,1719702655601,-500.0,0.00013917,3]
[330676110,1719702655611,-500.0,0.00013917,3]
[330676111,1719702655620,-567.84278151,0.00013917,3]
[330676112,1719702655631,-1041.54,0.00013917,3]
[330676113,1719702655640,-500.0,0.00013917,3]
[330676114,1719702655649,-783.66,0.00013917,3]
[330676115,1719702655659,-500.0,0.00013917,3]
[330676116,1719702655670,-591.94,0.00013917,3]
[330676117,1719702655679,-500.0,0.00013917,3]
[330676118,1719702655689,-558.05,0.00013917,3]
[330676119,1719702655700,-500.0,0.00013917,3]
[330676120,1719702655709,-615.77,0.00013917,3]
[330676121,1719702655719,-657.81,0.00013917,3]
[330676122,1719702655728,-500.0,0.00013917,3]
[330676123,1719702655737,-500.0,0.00013917,3]
[330676124,1719702655747,-945.21,0.00013917,3]
[330676125,1719702655756,-500.0,0.00013917,3]
[330676126,1719702655765,-515.45,0.00013917,3]
[330676127,1719702655775,-500.0,0.00013917,3]
[330676128,1719702655785,-500.0,0.00013917,3]
[330676129,1719702655794,-500.0,0.00013917,3]
[330676130,1719702655804,-510.1,0.00013917,3]
[330676131,1719702655813,-1445.6,0.00013917,3]
[330676132,1719702655823,-500.0,0.00013917,3]
[330676133,1719702655832,-500.0,0.00013917,3]
[330676134,1719702655842,-663.45,0.00013917,3]
[330676135,1719702655851,-246.90635687,0.00013917,3]
[330676136,1719702655861,-500.0,0.00013917,3]
[330676137,1719702655871,-1023.04,0.00013917,3]
[330676138,1719702655880,-500.0,0.00013917,3]
[330676139,1719702655890,-500.0,0.00013917,3]
[330676140,1719702655901,-500.0,0.00013917,3]
[330676141,1719702655911,-500.0,0.00013917,3]
[330676142,1719702655920,-898.03,0.00013917,3]
[330676143,1719702655930,-500.0,0.00013917,3]
[330676144,1719702655940,-500.0,0.00013917,3]
[330676145,1719702655950,-500.0,0.00013917,3]
[330676146,1719702655959,-500.0,0.00013917,3]
[330676147,1719702655969,-1145.38,0.00013917,3]
[330676148,1719702655978,-969.61,0.00013917,3]
[330676149,1719702655988,-1018.95,0.00013917,3]
[330676150,1719702655997,-500.0,0.00013917,3]
[330676151,1719702656007,-975.07,0.00013917,3]
[330676152,1719702656016,-500.0,0.00013917,3]
[330676153,1719702656026,-500.0,0.00013917,3]
[330676154,1719702656035,-799.94,0.00013917,3]
[330676155,1719702656045,-500.0,0.00013917,3]
[330676156,1719702656055,-500.0,0.00013917,3]
[330676157,1719702656064,-500.0,0.00013917,3]
[330676158,1719702656075,-1204.22,0.00013917,3]
[330676159,1719702656084,-567.01,0.00013917,3]
[330676160,1719702656094,-500.0,0.00013917,3]
[330676161,1719702656104,-831.53,0.00013917,3]
[330676162,1719702656114,-515.38,0.00013917,3]
[330676163,1719702656123,-553.81,0.00013917,3]
[330676164,1719702656132,-227.34472342,0.00013917,3]
[330676165,1719702656921,-272.65527658,0.00013917,3]
[330676166,1719702656931,-500.0,0.00013917,3]
[330676167,1719702656941,-500.0,0.00013917,3]
[330676168,1719702656951,-818.1,0.00013917,3]
[330676169,1719702656960,-816.09,0.00013917,3]
[330676170,1719702656970,-1513.73,0.00013917,3]
[330676171,1719702656979,-500.0,0.00013917,3]
[330676172,1719702656988,-593.24,0.00013917,3]
[330676173,1719702656998,-500.0,0.00013917,3]
[330676174,1719702657007,-500.0,0.00013917,3]
[330676175,1719702657016,-532.37,0.00013917,3]
[330676176,1719702657025,-500.0,0.00013917,3]
[330676177,1719702657035,-880.05,0.00013917,3]
[330676178,1719702657044,-1034.64,0.00013917,3]
[330676179,1719702657054,-590.12741202,0.00013917,3]
[330676180,1719702657063,-500.0,0.00013917,3]
[330676181,1719702657072,-1095.55,0.00013917,3]
[330676182,1719702657082,-619.34,0.00013917,3]
[330676183,1719702657091,-500.0,0.00013917,3]
[330676184,1719702657101,-624.28,0.00013917,3]
[330676185,1719702657111,-1026.26,0.00013917,3]
[330676186,1719702657120,-500.0,0.00013917,3]
[330676187,1719702657130,-500.0,0.00013917,3]
[330676188,1719702657139,-1112.31,0.00013917,3]
[330676189,1719702657148,-500.0,0.00013917,3]
[330676190,1719702657158,-567.0,0.00013917,3]
[330676191,1719702657167,-500.0,0.00013917,3]
[330676192,1719702657177,-518.28,0.00013917,3]
[330676193,1719702657186,-500.0,0.00013917,3]
[330676194,1719702657195,-871.97,0.00013917,3]
[330676195,1719702657205,-809.32,0.00013917,3]
[330676196,1719702657214,-500.0,0.00013917,3]
[330676197,1719702657223,-2067.38,0.00013917,3]
[330676198,1719702657232,-500.0,0.00013917,3]
[330676199,1719702657243,-718.61,0.00013917,3]
[330676200,1719702657252,-500.0,0.00013917,3]
[330676201,1719702657262,-500.0,0.00013917,3]
[330676202,1719702657275,-1368.47,0.00013917,3]
[330676203,1719702657284,-500.0,0.00013917,3]
[330676204,1719702657293,-500.0,0.00013917,3]
[330676205,1719702657303,-500.0,0.00013917,3]
[330676206,1719702657314,-500.0,0.00013917,3]
[330676207,1719702657323,-500.0,0.00013917,3]
[330676208,1719702657332,-500.0,0.00013917,3]
[330676209,1719702657341,-623.23,0.00013917,3]
[330676210,1719702657351,-500.0,0.00013917,3]
[330676211,1719702657360,-500.0,0.00013917,3]
[330676212,1719702657370,-500.0,0.00013917,3]
[330676213,1719702657379,-500.0,0.00013917,3]
[330676214,1719702657388,-500.0,0.00013917,3]
[330676215,1719702657397,-500.0,0.00013917,3]
[330676216,1719702657406,-882.19,0.00013917,3]
[330676217,1719702657416,-500.0,0.00013917,3]
[330676218,1719702657426,-591.78,0.00013917,3]
[330676219,1719702657435,-500.0,0.00013917,3]
[330676220,1719702657445,-391.17485107,0.00013917,3]
[330676221,1719702657454,-531.83,0.00013917,3]
[330676222,1719702657463,-742.61,0.00013917,3]
[330676223,1719702657473,-1585.47,0.00013917,3]
[330676224,1719702657482,-500.0,0.00013917,3]
[330676225,1719702657491,-822.01,0.00013917,3]
[330676226,1719702657501,-500.0,0.00013917,3]
[330676227,1719702657510,-1911.79,0.00013917,3]
[330676228,1719702657519,-500.0,0.00013917,3]
[330676229,1719702657528,-500.0,0.00013917,3]
[330676230,1719702657538,-500.0,0.00013917,3]
[330676231,1719702657547,-589.83,0.00013917,3]
[330676232,1719702657557,-4166.33,0.00013917,3]
[330676233,1719702657567,-500.0,0.00013917,3]
[330676234,1719702657577,-787.58,0.00013917,3]
[330676235,1719702657586,-837.28,0.00013917,3]
[330676236,1719702657596,-500.0,0.00013917,3]
[330676237,1719702657606,-705.53,0.00013917,3]
[330676238,1719702657615,-1293.27,0.00013917,3]
[330676239,1719702657624,-633.52,0.00013917,3]
[330676240,1719702657634,-500.0,0.00013917,3]
[330676241,1719702657643,-500.0,0.00013917,3]
[330676242,1719702657653,-500.0,0.00013917,3]
[330676243,1719702657662,-500.0,0.00013917,3]
[330676244,1719702657672,-500.0,0.00013917,3]
[330676245,1719702657681,-373.87176792,0.00013917,3]
[330676246,1719702657691,-817.63,0.00013917,3]
[330676247,1719702657704,-702.27,0.00013917,3]
[330676248,1719702657714,-500.0,0.00013917,3]
[330676249,1719702657723,-500.0,0.00013917,3]
[330676250,1719702657733,-500.0,0.00013917,3]
[330676251,1719702657742,-629.19,0.00013917,3]
[330676252,1719702657751,-500.0,0.00013917,3]
[330676253,1719702657760,-500.0,0.00013917,3]
[330676254,1719702657770,-755.42,0.00013917,3]
[330676255,1719702657779,-572.96,0.00013917,3]
[330676256,1719702657789,-802.9,0.00013917,3]
[330676257,1719702657799,-817.91,0.00013917,3]
[330676258,1719702657808,-500.0,0.00013917,3]
[330676259,1719702657818,-500.0,0.00013917,3]
[330676260,1719702657828,-1688.66,0.00013917,3]
[330676261,1719702657837,-500.0,0.00013917,3]
[330676262,1719702657847,-500.0,0.00013917,3]
[330676263,1719702657857,-612.48,0.00013917,3]
[330676264,1719702657867,-720.42,0.00013917,3]
[330676265,1719702657876,-500.0,0.00013917,3]
[330676266,1719702657886,-627.07,0.00013917,3]
[330676267,1719702657895,-1888.75,0.00013917,3]
[330676268,1719702657905,-500.0,0.00013917,3]
[330676269,1719702657915,-664.05,0.00013917,3]
[330676270,1719702657926,-1221.71,0.00013917,3]
[330676271,1719702657935,-591.93,0.00013917,3]
[330676272,1719702657944,-536.84,0.00013917,3]
[330676273,1719702657954,-862.47,0.00013917,3]
[330676274,1719702657963,-1796.39,0.00013917,3]
[330676275,1719702657973,-655.37,0.00013917,3]
[330676276,1719702657983,-1141.56,0.00013917,3]
[330676277,1719702657992,-652.55,0.00013917,3]
[330676278,1719702658001,-500.0,0.00013917,3]
[330676279,1719702658011,-500.0,0.00013917,3]
[330676280,1719702658020,-500.0,0.00013917,3]
[330676281,1719702658030,-607.14,0.00013917,3]
[330676282,1719702658039,-579.14,0.00013917,3]
[330676283,1719702658049,-946.71,0.00013917,3]
[330676284,1719702658058,-865.34,0.00013917,3]
[330676285,1719702658067,-500.0,0.00013917,3]
[330676286,1719702658076,-500.0,0.00013917,3]
[330676287,1719702658085,-196.29492632,0.00013917,3]
[330676288,1719702658094,-1058.73,0.00013917,3]
[330676289,1719702658104,-500.0,0.00013917,3]
[330676290,1719702658113,-500.0,0.00013917,3]
[330676291,1719702658122,-544.6,0.00013917,3]
[330676292,1719702658131,-1037.96,0.00013917,3]
[330676293,1719702658141,-1324.61,0.00013917,3]
[330676294,1719702658150,-500.0,0.00013917,3]
[330676295,1719702658159,-500.0,0.00013917,3]
[330676296,1719702658169,-500.0,0.00013917,3]
[330676297,1719702658180,-500.0,0.00013917,3]
[330676298,1719702658189,-2610.56,0.00013917,3]
[330676299,1719702658199,-862.79,0.00013917,3]
[330676300,1719702658209,-500.0,0.00013917,3]
[330676301,1719702658218,-500.0,0.00013917,3]
[330676302,1719702658228,-413.71501305,0.00013917,3]
[330676303,1719702658237,-899.23,0.00013917,3]
[330676304,1719702658247,-500.0,0.00013917,3]
[330676305,1719702658256,-647.72,0.00013917,3]
[330676306,1719702658267,-1512.84,0.00013917,3]
[330676307,1719702658279,-500.0,0.00013917,3]
[330676308,1719702658289,-500.0,0.00013917,3]
[330676309,1719702658298,-500.0,0.00013917,3]
[330676310,1719702658307,-500.0,0.00013917,3]
[330676311,1719702658319,-1515.14,0.00013917,3]
[330676312,1719702658328,-500.0,0.00013917,3]
[330676313,1719702658338,-500.0,0.00013917,3]
[330676314,1719702658350,-500.0,0.00013917,3]
[330676315,1719702658360,-500.0,0.00013917,3]
[330676316,1719702658369,-1245.81,0.00013917,3]
[330676317,1719702658379,-500.0,0.00013917,3]
[330676318,1719702658388,-500.0,0.00013917,3]
[330676319,1719702658399,-500.0,0.00013917,3]
[330676320,1719702658409,-500.0,0.00013917,3]
[330676321,1719702658419,-2556.45,0.00013917,3]
[330676322,1719702658429,-500.0,0.00013917,3]
[330676323,1719702658438,-1348.86,0.00013917,3]
[330676324,1719702658448,-500.0,0.00013917,3]
[330676325,1719702658457,-500.0,0.00013917,3]
[330676326,1719702658467,-1439.96,0.00013917,3]
[330676327,1719702658476,-500.0,0.00013917,3]
[330676328,1719702658486,-500.0,0.00013917,3]
[330676329,1719702658496,-500.0,0.00013917,3]
[330676330,1719702658507,-500.0,0.00013917,3]
[330676331,1719702658516,-500.0,0.00013917,3]
[330676332,1719702658526,-940.88,0.00013917,3]
[330676333,1719702658535,-992.02,0.00013917,3]
[330676334,1719702658544,-500.0,0.00013917,3]
[330676335,1719702658554,-694.34,0.00013917,3]
[330676336,1719702658565,-500.0,0.00013917,3]
[330676337,1719702658575,-1565.07,0.00013917,3]
[330676338,1719702658584,-500.0,0.00013917,3]
[330676339,1719702658593,-500.0,0.00013917,3]
[330676340,1719702658603,-505.37,0.00013917,3]
[330676341,1719702658613,-632.69,0.00013917,3]
[330676342,1719702658622,-1198.77,0.00013917,3]
[330676343,1719702658631,-500.78,0.00013917,3]
[330676344,1719702658644,-500.0,0.00013917,3]
[330676345,1719702658653,-569.94,0.00013917,3]
[330676346,1719702658663,-500.0,0.00013917,3]
[330676347,1719702658672,-794.21,0.00013917,3]
[330676348,1719702658682,-500.0,0.00013917,3]
[330676349,1719702658691,-500.0,0.00013917,3]
[330676350,1719702658700,-515.57,0.00013917,3]
[330676351,1719702658709,-500.0,0.00013917,3]
[330676352,1719702658719,-500.0,0.00013917,3]
[330676353,1719702658729,-422.17,0.00013917,3]
[330676354,1719702658738,-500.0,0.00013917,3]
[330676355,1719702658747,-500.0,0.00013917,3]
[330676356,1719702658757,-500.0,0.00013917,3]
[330676357,1719702658766,-500.0,0.00013917,3]
[330676358,1719702658775,-1821.03,0.00013917,3]
[330676359,1719702658785,-1696.53,0.00013917,3]
[330676360,1719702658794,-526.17,0.00013917,3]
[330676361,1719702658804,-1142.96,0.00013917,3]
[330676362,1719702658813,-1265.27,0.00013917,3]
[330676363,1719702658822,-531.4,0.00013917,3]
[330676364,1719702658832,-500.0,0.00013917,3]
[330676365,1719702658842,-783.63,0.00013917,3]
[330676366,1719702658852,-654.77,0.00013917,3]
[330676367,1719702658862,-522.82,0.00013917,3]
[330676368,1719702658871,-1013.45,0.00013917,3]
[330676369,1719702658882,-712.74,0.00013917,3]
[330676370,1719702658891,-1239.86,0.00013917,3]
[330676371,1719702658902,-500.0,0.00013917,3]
[330676372,1719702658912,-500.0,0.00013917,3]
[330676373,1719702658922,-894.57,0.00013917,3]
[330676374,1719702658931,-500.0,0.00013917,3]
[330676375,1719702658940,-764.61,0.00013917,3]
[330676376,1719702658950,-1617.24,0.00013917,3]
[330676377,1719702658959,-500.0,0.00013917,3]
[330676378,1719702658968,-512.11,0.00013917,3]
[330676379,1719702658977,-500.0,0.00013917,3]
[330676380,1719702658988,-632.13,0.00013917,3]
[330676381,1719702658998,-513.68,0.00013917,3]
[330676382,1719702659008,-851.86,0.00013917,3]
[330676383,1719702659018,-500.0,0.00013917,3]
[330676384,1719702659028,-500.0,0.00013917,3]
[330676385,1719702659039,-500.0,0.00013917,3]
[330676386,1719702659049,-500.0,0.00013917,3]
[330676387,1719702659059,-588.89,0.00013917,3]
[330676388,1719702659070,-500.0,0.00013917,3]
[330676389,1719702659080,-1037.15,0.00013917,3]
[330676390,1719702659090,-2739.33,0.00013917,3]
[330676391,1719702659099,-1578.34,0.00013917,3]
[330676392,1719702659108,-500.0,0.00013917,3]
[330676393,1719702659118,-500.0,0.00013917,3]
[330676394,1719702659127,-545.19,0.00013917,3]
[330676395,1719702659136,-629.94,0.00013917,3]
[330676396,1719702659145,-500.0,0.00013917,3]
[330676397,1719702659155,-1169.34,0.00013917,3]
[330676398,1719702659164,-500.0,0.00013917,3]
[330676399,1719702659175,-643.99,0.00013917,3]
[330676400,1719702659183,-642.91,0.00013917,3]
[330676401,1719702659194,-500.0,0.00013917,3]
[330676402,1719702659204,-500.0,0.00013917,3]
[330676403,1719702659215,-898.77,0.00013917,3]
[330676404,1719702659226,-500.0,0.00013917,3]
[330676405,1719702659316,-573.27,0.00013917,3]
[330676406,1719702659326,-1367.19,0.00013917,3]
[330676407,1719702659337,-607.5,0.00013917,3]
[330676408,1719702659347,-1636.16,0.00013917,3]
[330676409,1719702659359,-1687.5,0.00013917,3]
[330676410,1719702659369,-500.0,0.00013917,3]
[330676411,1719702659378,-567.14,0.00013917,3]
[330676412,1719702659387,-500.0,0.00013917,3]
[330676413,1719702659397,-500.0,0.00013917,3]
[330676414,1719702659407,-803.35,0.00013917,3]
[330676415,1719702659416,-985.5,0.00013917,3]
[330676416,1719702659428,-500.0,0.00013917,3]
[330676417,1719702659438,-500.0,0.00013917,3]
[330676418,1719702659447,-500.0,0.00013917,3]
[330676419,1719702659456,-550.76,0.00013917,3]
[330676420,1719702659465,-500.0,0.00013917,3]
[330676421,1719702659474,-500.0,0.00013917,3]
[330676422,1719702659484,-792.58,0.00013917,3]
[330676423,1719702659494,-500.0,0.00013917,3]
[330676424,1719702659503,-5383.18,0.00013917,3]
[330676426,1719702659512,-500.0,0.00013917,3]
[330676427,1719702659521,-914.33,0.00013917,3]
[330676428,1719702659531,-649.20357704,0.00013917,3]
[330676429,1719702659540,-3711.41,0.00013917,3]
[330676430,1719702659549,-4462.46,0.00013917,3]
[330676431,1719702659558,-500.0,0.00013917,3]
[330676432,1719702659567,-500.0,0.00013917,3]
[330676433,1719702659576,-976.92,0.00013917,3]
[330676434,1719702659585,-894.75,0.00013917,3]
[330676435,1719702659594,-628.33,0.00013917,3]
[330676436,1719702659603,-500.0,0.00013917,3]
[330676437,1719702659612,-500.0,0.00013917,3]
[330676438,1719702659622,-500.0,0.00013917,3]
[330676439,1719702659630,-500.0,0.00013917,3]
[330676440,1719702659640,-2797.8,0.00013917,3]
[330676441,1719702659649,-500.0,0.00013917,3]
[330676442,1719702659658,-11044.27,0.00013917,3]
[330676443,1719702659667,-500.0,0.00013917,3]
[330676444,1719702659678,-3000.57,0.00013917,3]
[330676445,1719702659686,-727.89,0.00013917,3]
[330676446,1719702659695,-1137.92,0.00013917,3]
[330676447,1719702659704,-629.05,0.00013917,3]
[330676448,1719702659714,-931.34,0.00013917,3]
[330676449,1719702659723,-500.0,0.00013917,3]
[330676450,1719702659733,-500.0,0.00013917,3]
[330676451,1719702659745,-528.89,0.00013917,3]
[330676452,1719702659754,-503.44,0.00013917,3]
[330676453,1719702659763,-500.0,0.00013917,3]
[330676454,1719702659772,-500.0,0.00013917,3]
[330676455,1719702659781,-938.06,0.00013917,3]
[330676456,1719702659791,-993.81,0.00013917,3]
[330676457,1719702659800,-883.93,0.00013917,3]
[330676458,1719702659809,-1409.42,0.00013917,3]
[330676459,1719702659819,-4873.75,0.00013917,3]
[330676460,1719702659827,-2227.76,0.00013917,3]
[330676461,1719702659836,-881.52,0.00013917,3]
[330676462,1719702659846,-500.0,0.00013917,3]
[330676463,1719702659855,-731.57,0.00013917,3]
[330676464,1719702659864,-500.0,0.00013917,3]
[330676465,1719702659873,-500.0,0.00013917,3]
[330676466,1719702659882,-921.45,0.00013917,3]
[330676467,1719702659891,-1400.96,0.00013917,3]
[330676468,1719702659902,-2929.33,0.00013917,3]
[330676469,1719702659912,-220.00009435,0.00013917,3]
[330676470,1719702659922,-3543.01,0.00013917,3]
[330676471,1719702659931,-500.0,0.00013917,3]
[330676472,1719702659940,-500.0,0.00013917,3]
[330676473,1719702659949,-1798.12,0.00013917,3]
[330676474,1719702659958,-500.0,0.00013917,3]
[330676475,1719702659967,-500.0,0.00013917,3]
[330676476,1719702659977,-2944.7,0.00013917,3]
[330676477,1719702659986,-500.0,0.00013917,3]
[330676478,1719702659996,-513.93,0.00013917,3]
[330676479,1719702660005,-933.64,0.00013917,3]
[330676480,1719702660015,-1388.03,0.00013917,3]
[330676481,1719702660025,-500.0,0.00013917,3]
[330676482,1719702660035,-500.0,0.00013917,3]
[330676483,1719702660044,-845.68,0.00013917,3]
[330676484,1719702660053,-500.0,0.00013917,3]
[330676485,1719702660063,-500.0,0.00013917,3]
[330676486,1719702660072,-566.29,0.00013917,3]
[330676487,1719702660081,-500.0,0.00013917,3]
[330676488,1719702660090,-500.0,0.00013917,3]
[330676489,1719702660099,-500.0,0.00013917,3]
[330676490,1719702660108,-500.0,0.00013917,3]
[330676491,1719702660118,-1342.18,0.00013917,3]
[330676492,1719702660128,-1558.67,0.00013917,3]
[330676493,1719702660137,-515.73,0.00013917,3]
[330676494,1719702660146,-500.0,0.00013917,3]
[330676495,1719702660155,-500.0,0.00013917,3]
[330676496,1719702660164,-739.84,0.00013917,3]
[330676497,1719702660174,-717.36,0.00013917,3]
[330676498,1719702660183,-1599.0,0.00013917,3]
[330676499,1719702660193,-3421.73,0.00013917,3]
[330676500,1719702660203,-1049.1,0.00013917,3]
[330676501,1719702660212,-618.65,0.00013917,3]
[330676502,1719702660222,-500.0,0.00013917,3]
[330676503,1719702660232,-2751.47,0.00013917,3]
[330676504,1719702660241,-872.28,0.00013917,3]
[330676505,1719702660251,-973.09,0.00013917,3]
[330676506,1719702660260,-2650.04,0.00013917,3]
[330676507,1719702660274,-500.0,0.00013917,3]
[330676508,1719702660283,-500.0,0.00013917,3]
[330676509,1719702660293,-500.0,0.00013917,3]
[330676510,1719702660303,-1539.85,0.00013917,3]
[330676511,1719702660312,-3357.73,0.00013917,3]
[330676512,1719702660323,-500.0,0.00013917,3]
[330676513,1719702660332,-500.0,0.00013917,3]
[330676514,1719702660341,-720.72,0.00013917,3]
[330676515,1719702660353,-500.0,0.00013917,3]
[330676516,1719702660364,-500.0,0.00013917,3]
[330676517,1719702660373,-995.58,0.00013917,3]
[330676518,1719702660382,-1709.1,0.00013917,3]
[330676519,1719702660391,-500.0,0.00013917,3]
[330676520,1719702660401,-1444.41,0.00013917,3]
[330676521,1719702660411,-500.0,0.00013917,3]
[330676522,1719702660420,-2063.85,0.00013917,3]
[330676523,1719702660430,-758.05,0.00013917,3]
[330676524,1719702660440,-2102.61,0.00013917,3]
[330676525,1719702660450,-648.33,0.00013917,3]
[330676526,1719702660459,-652.45,0.00013917,3]
[330676527,1719702660469,-500.0,0.00013917,3]
[330676528,1719702660478,-1410.17,0.00013917,3]
[330676529,1719702660488,-500.0,0.00013917,3]
[330676530,1719702660497,-618.25,0.00013917,3]
[330676531,1719702660506,-500.0,0.00013917,3]
[330676532,1719702660516,-500.0,0.00013917,3]
[330676533,1719702660525,-500.0,0.00013917,3]
[330676534,1719702660536,-500.0,0.00013917,3]
[330676535,1719702660546,-500.0,0.00013917,3]